fUST/lending_fUST_20251006
["ID","MTS","AMOUNT","RATE_DAILY","PERIOD"]
[389520193,1759693842339,-1663.58,0.00016712,2]
[389520194,1759693842348,-1658.69,0.00016712,2]
[389520195,1759693842357,-518.91636014,0.00016712,2]
[389520196,1759693842367,-500.0,0.00016712,2]
[389520197,1759693842375,-500.0,0.00016712,2]
[389520198,1759693842385,-2784.85,0.00016712,2]
[389520199,1759693842394,-4229.54,0.00016712,2]
[389520200,1759693842404,-500.0,0.00016712,2]
[389520201,1759693842413,-4885.95,0.00016712,2]
[389520202,1759693842422,-500.0,0.00016712,2]
[389520203,1759693842431,-500.0,0.00016712,2]
[389520204,1759693842439,-500.0,0.00016712,2]
[389520205,1759693842449,-500.0,0.00016712,2]
[389520206,1759693842458,-920.78,0.00016712,2]
[389520207,1759693842466,-1208.16,0.00016712,2]
[389520208,1759693842476,-523.46,0.00016712,2]
[389520209,1759693842486,-500.0,0.00016712,2]
[389520210,1759693842495,-494.75377499,0.00016712,2]
[389520211,1759693842504,-1050.32,0.00016712,2]
[389520212,1759693842513,-2300.26,0.00016712,2]
[389520213,1759693842522,-717.89,0.00016712,2]
[389520214,1759693842531,-533.5,0.00016712,2]
[389520215,1759693842541,-955.73,0.00016712,2]
[389520216,1759693842550,-1702.31,0.00016712,2]
[389520217,1759693842559,-1493.42,0.00016712,2]
[389520218,1759693842568,-2616.0,0.00016712,2]
[389520219,1759693842577,-572.41,0.00016712,2]
[389520220,1759693842586,-3516.18,0.00016712,2]
[389520221,1759693842596,-500.0,0.00016712,2]
[389520222,1759693842605,-522.82,0.00016712,2]
[389520223,1759693842614,-500.0,0.00016712,2]
[389520224,1759693842623,-750.08,0.00016712,2]
[389520225,1759693842632,-552.61,0.00016712,2]
[389520226,1759693842641,-1088.05,0.00016712,2]
[389520227,1759693842650,-827.55,0.00016712,2]
[389520228,1759693842659,-1168.93,0.00016712,2]
[389520229,1759693842667,-500.0,0.00016712,2]
[389520230,1759693842676,-500.0,0.00016712,2]
[389520231,1759693842685,-922.85,0.00016712,2]
[389520232,1759693842694,-2700.64,0.00016712,2]
[389520233,1759693842704,-500.0,0.00016712,2]
[389520234,1759693842713,-3387.73,0.00016712,2]
[389520235,1759693842721,-550.75,0.00016712,2]
[389520236,1759693842731,-500.0,0.00016712,2]
[389520238,1759693842740,-3652.51,0.00016712,2]
[389520240,1759693842750,-499.82236058,0.00016712,2]
[389520242,1759693842759,-500.0,0.00016712,2]
[389520244,1759693842768,-500.0,0.00016712,2]
[389520245,1759693842778,-500.0,0.00016712,2]
[389520246,1759693842787,-864.87,0.00016712,2]
[389520247,1759693842797,-616.3,0.00016712,2]
[389520248,1759693842806,-775.37,0.00016712,2]
[389520249,1759693842815,-1015.95,0.00016712,2]
[389520251,1759693842825,-1156.45,0.00016712,2]
[389520253,1759693842834,-612.39,0.00016712,2]
[389520255,1759693842844,-1055.93,0.00016712,2]
[389520256,1759693842853,-500.0,0.00016712,2]
[389520257,1759693842862,-584.49,0.00016712,2]
[389520258,1759693842871,-2687.72,0.00016712,2]
[389520259,1759693842880,-1425.85,0.00016712,2]
[389520260,1759693842889,-500.0,0.00016712,2]
[389520262,1759693842899,-500.0,0.00016712,2]
[389520264,1759693842908,-613.05,0.00016712,2]
[389520265,1759693842918,-1223.44,0.00016712,2]
[389520266,1759693842927,-2136.3,0.00016712,2]
[389520267,1759693842937,-744.95,0.00016712,2]
[389520268,1759693842946,-1385.7,0.00016712,2]
[389520269,1759693842954,-500.0,0.00016712,2]
[389520270,1759693842963,-661.83,0.00016712,2]
[389520271,1759693842972,-1949.0,0.00016712,2]
[389520272,1759693842982,-500.0,0.00016712,2]
[389520273,1759693842991,-500.0,0.00016712,2]
[389520274,1759693843001,-500.0,0.00016712,2]
[389520275,1759693843011,-500.0,0.00016712,2]
[389520276,1759693843019,-500.0,0.00016712,2]
[389520277,1759693843029,-5637.43,0.00016712,2]
[389520278,1759693843038,-3127.4,0.00016712,2]
[389520279,1759693843046,-479.16133704,0.00016712,2]
[389520280,1759693843056,-1163.65,0.00016712,2]
[389520281,1759693843065,-500.0,0.00016712,2]
[389520282,1759693843074,-616.16,0.00016712,2]
[389520283,1759693843083,-500.0,0.00016712,2]
[389520284,1759693843092,-500.0,0.00016712,2]
[389520285,1759693843102,-317.75780789,0.00016712,2]
[389520286,1759693843111,-500.0,0.00016712,2]
[389520287,1759693843121,-500.0,0.00016712,2]
[389520288,1759693843129,-500.0,0.00016712,2]
[389520289,1759693843138,-1216.54,0.00016712,2]
[389520290,1759693843147,-1446.67,0.00016712,2]
[389520291,1759693843156,-500.0,0.00016712,2]
[389520292,1759693843165,-699.47,0.00016712,2]
[389520293,1759693843174,-500.0,0.00016712,2]
[389520294,1759693843183,-500.0,0.00016712,2]
[389520295,1759693843191,-757.97,0.00016712,2]
[389520296,1759693843200,-262.27717494,0.00016712,2]
[389520297,1759693843209,-1804.78,0.00016712,2]
[389520298,1759693843218,-500.0,0.00016712,2]
[389520299,1759693843227,-1414.73,0.00016712,2]
[389520300,1759693843236,-550.17,0.00016712,2]
[389520301,1759693843245,-500.0,0.00016712,2]
[389520302,1759693843254,-500.0,0.00016712,2]
[389520303,1759693843263,-500.0,0.00016712,2]
[389520304,1759693843273,-500.0,0.00016712,2]
[389520305,1759693843281,-1438.52,0.00016712,2]
[389520306,1759693843291,-1679.24,0.00016712,2]
[389520307,1759693843304,-500.0,0.00016712,2]
[389520308,1759693843315,-600.0,0.00016765,2]
[389520309,1759693843488,-322.0,0.00016864,2]
[389520310,1759693843498,-206.94331665,0.00016986,2]
[389520311,1759693843508,-500.0,0.00016986,2]
[389520312,1759693843517,-500.0,0.00016986,2]
[389520313,1759693843526,-500.0,0.00016986,2]
[389520314,1759693843535,-626.36,0.00016986,2]
[389520315,1759693843544,-758.13,0.00016986,2]
[389520316,1759693843553,-500.0,0.00016986,2]
[389520317,1759693843562,-607.6,0.00016986,2]
[389520318,1759693843572,-500.0,0.00016986,2]
[389520319,1759693843581,-500.0,0.00016986,2]
[389520320,1759693843591,-500.0,0.00016986,2]
[389520321,1759693843600,-468.98320977,0.00016986,2]
[389520322,1759693843610,-674.88,0.00016986,2]
[389520323,1759693843620,-407.04511208,0.00016986,2]
[389520324,1759693843630,-500.0,0.00016986,2]
[389520325,1759693843639,-562.91,0.00016986,2]
[389520326,1759693843649,-500.0,0.00016986,2]
[389520327,1759693843659,-500.0,0.00016986,2]
[389520328,1759693843668,-769.83,0.00016986,2]
[389520329,1759693843678,-500.0,0.00016986,2]
[389520330,1759693843688,-500.0,0.00016986,2]
[389520331,1759693843699,-500.0,0.00016986,2]
[389520332,1759693843709,-1235.18,0.00016986,2]
[389520333,1759693843721,-500.0,0.00016986,2]
[389520334,1759693843730,-500.0,0.00016986,2]
[389520335,1759693843739,-500.0,0.00016986,2]
[389520336,1759693843751,-540.3,0.00016986,2]
[389520337,1759693843760,-500.0,0.00016986,2]
[389520338,1759693843770,-500.0,0.00016986,2]
[389520339,1759693843779,-500.0,0.00016986,2]
[389520340,1759693843788,-570.97,0.00016986,2]
[389520341,1759693843797,-500.0,0.00016986,2]
[389520342,1759693843807,-812.96,0.00016986,2]
[389520343,1759693843816,-500.0,0.00016986,2]
[389520344,1759693843825,-500.0,0.00016986,2]
[389520345,1759693843834,-500.0,0.00016986,2]
[389520346,1759693843844,-500.0,0.00016986,2]
[389520347,1759693843853,-605.27,0.00016986,2]
[389520348,1759693843862,-500.0,0.00016986,2]
[389520349,1759693843871,-500.0,0.00016986,2]
[389520350,1759693843880,-500.0,0.00016986,2]
[389520351,1759693843890,-500.0,0.00016986,2]
[389520352,1759693843898,-500.0,0.00016986,2]
[389520353,1759693843907,-500.0,0.00016986,2]
[389520354,1759693843916,-500.0,0.00016986,2]
[389520355,1759693843926,-500.0,0.00016986,2]
[389520356,1759693843935,-500.0,0.00016986,2]
[389520357,1759693843945,-500.0,0.00016986,2]
[389520358,1759693843954,-1838.04,0.00016986,2]
[389520359,1759693843964,-500.0,0.00016986,2]
[389520360,1759693843973,-500.0,0.00016986,2]
[389520361,1759693843982,-651.56,0.00016986,2]
[389520362,1759693843991,-500.0,0.00016986,2]
[389520363,1759693844001,-1092.5,0.00016986,2]
[389520364,1759693844010,-1194.26,0.00016986,2]
[389520365,1759693844019,-500.0,0.00016986,2]
[389520366,1759693844028,-500.0,0.00016986,2]
[389520367,1759693844037,-500.0,0.00016986,2]
[389520368,1759693844047,-500.0,0.00016986,2]
[389520369,1759693844056,-500.0,0.00016986,2]
[389520370,1759693844066,-500.0,0.00016986,2]
[389520371,1759693844075,-500.0,0.00016986,2]
[389520372,1759693844086,-500.0,0.00016986,2]
[389520373,1759693844096,-500.0,0.00016986,2]
[389520374,1759693844105,-500.0,0.00016986,2]
[389520375,1759693844115,-500.0,0.00016986,2]
[389520376,1759693844124,-500.0,0.00016986,2]
[389520377,1759693844134,-800.06,0.00016986,2]
[389520378,1759693844144,-663.65,0.00016986,2]
[389520379,1759693844154,-1260.74,0.00016986,2]
[389520380,1759693844165,-500.0,0.00016986,2]
[389520381,1759693844175,-569.99,0.00016986,2]
[389520382,1759693844184,-1886.03,0.00016986,2]
[389520383,1759693844194,-500.0,0.00016986,2]
[389520384,1759693844203,-500.0,0.00016986,2]
[389520385,1759693844213,-500.0,0.00016986,2]
[389520386,1759693844224,-789.18,0.00016986,2]
[389520387,1759693844234,-500.0,0.00016986,2]
[389520388,1759693844245,-500.0,0.00016986,2]
[389520389,1759693844254,-500.0,0.00016986,2]
[389520390,1759693844263,-786.17,0.00016986,2]
[389520391,1759693844273,-500.0,0.00016986,2]
[389520392,1759693844282,-500.0,0.00016986,2]
[389520393,1759693844292,-500.0,0.00016986,2]
[389520394,1759693844305,-500.0,0.00016986,2]
[389520395,1759693844316,-946.01,0.00016986,2]
[389520396,1759693844326,-776.5,0.00016986,2]
[389520397,1759693844338,-500.0,0.00016986,2]
[389520398,1759693844349,-500.0,0.00016986,2]
[389520399,1759693844358,-500.0,0.00016986,2]
[389520400,1759693844367,-500.0,0.00016986,2]
[389520401,1759693844376,-1066.9,0.00016986,2]
[389520402,1759693844385,-500.0,0.00016986,2]
[389520403,1759693844394,-500.0,0.00016986,2]
[389520404,1759693844404,-500.0,0.00016986,2]
[389520405,1759693844413,-500.0,0.00016986,2]
[389520406,1759693844422,-500.0,0.00016986,2]
[389520407,1759693844432,-500.0,0.00016986,2]
[389520408,1759693844441,-831.51,0.00016986,2]
[389520409,1759693844450,-629.32559894,0.00016986,2]
[389520410,1759693844459,-1686.53,0.00016986,2]
[389520411,1759693844468,-909.99,0.00016986,2]
[389520412,1759693844478,-500.0,0.00016986,2]
[389520413,1759693844488,-663.48,0.00016986,2]
[389520414,1759693844497,-690.22,0.00016986,2]
[389520415,1759693844506,-500.0,0.00016986,2]
[389520416,1759693844516,-500.0,0.00016986,2]
[389520417,1759693844525,-500.0,0.00016986,2]
[389520418,1759693844534,-500.0,0.00016986,2]
[389520419,1759693844543,-500.0,0.00016986,2]
[389520420,1759693844552,-500.0,0.00016986,2]
[389520421,1759693844561,-500.0,0.00016986,2]
[389520422,1759693844570,-500.0,0.00016986,2]
[389520423,1759693844580,-714.23,0.00016986,2]
[389520424,1759693844589,-608.03,0.00016986,2]
[389520425,1759693844598,-942.85,0.00016986,2]
[389520426,1759693844607,-1663.58,0.00016986,2]
[389520427,1759693844617,-1658.69,0.00016986,2]
[389520428,1759693844626,-500.0,0.00016986,2]
[389520429,1759693844635,-500.0,0.00016986,2]
[389520430,1759693844644,-2784.85,0.00016986,2]
[389520431,1759693844654,-4229.54,0.00016986,2]
[389520432,1759693844663,-500.0,0.00016986,2]
[389520433,1759693844673,-4885.95,0.00016986,2]
[389520434,1759693844683,-288.66623334,0.00016986,2]
[389520435,1759693844694,-500.0,0.00016986,2]
[389520436,1759693844705,-506.53877013,0.00016986,2]
[389520437,1759693844714,-500.0,0.00016986,2]
[389520438,1759693844723,-920.78,0.00016986,2]
[389520439,1759693844732,-1208.16,0.00016986,2]
[389520440,1759693844743,-523.46,0.00016986,2]
[389520441,1759693844752,-550.25144794,0.00016986,2]
[389520442,1759693844761,-1050.32,0.00016986,2]
[389520443,1759693844770,-2300.26,0.00016986,2]
[389520444,1759693844779,-717.89,0.00016986,2]
[389520445,1759693844788,-533.5,0.00016986,2]
[389520446,1759693844798,-955.73,0.00016986,2]
[389520447,1759693844807,-1702.31,0.00016986,2]
[389520448,1759693844816,-1493.42,0.00016986,2]
[389520449,1759693844825,-2616.0,0.00016986,2]
[389520450,1759693844835,-572.41,0.00016986,2]
[389520451,1759693844844,-3516.18,0.00016986,2]
[389520452,1759693844854,-500.0,0.00016986,2]
[389520453,1759693844863,-522.82,0.00016986,2]
[389520454,1759693844872,-750.08,0.00016986,2]
[389520455,1759693844881,-552.61,0.00016986,2]
[389520456,1759693844890,-1088.05,0.00016986,2]
[389520457,1759693844899,-827.55,0.00016986,2]
[389520458,1759693844909,-1168.93,0.00016986,2]
[389520459,1759693844918,-402.38449506,0.00016986,2]
[389520460,1759693844932,-500.0,0.00016986,2]
[389520461,1759693844942,-922.85,0.00016986,2]
[389520462,1759693844952,-2700.64,0.00016986,2]
[389520463,1759693844961,-500.0,0.00016986,2]
[389520464,1759693844970,-3387.73,0.00016986,2]
[389520465,1759693844980,-550.75,0.00016986,2]
[389520466,1759693844988,-500.0,0.00016986,2]
[389520467,1759693844997,-3652.51,0.00016986,2]
[389520468,1759693845006,-174.36511048,0.00016986,2]
[389520469,1759693845015,-500.0,0.00016986,2]
[389520470,1759693845024,-500.0,0.00016986,2]
[389520471,1759693845033,-864.87,0.00016986,2]
[389520472,1759693845043,-616.3,0.00016986,2]
[389520473,1759693845052,-775.37,0.00016986,2]
[389520474,1759693845061,-1015.95,0.00016986,2]
[389520475,1759693845069,-1156.45,0.00016986,2]
[389520476,1759693845079,-612.39,0.00016986,2]
[389520477,1759693845087,-1055.93,0.00016986,2]
[389520478,1759693845097,-500.0,0.00016986,2]
[389520479,1759693845105,-584.49,0.00016986,2]
[389520480,1759693845114,-2687.72,0.00016986,2]
[389520481,1759693845124,-1425.85,0.00016986,2]
[389520482,1759693845133,-500.0,0.00016986,2]
[389520483,1759693845141,-613.05,0.00016986,2]
[389520484,1759693845151,-1223.44,0.00016986,2]
[389520485,1759693845159,-2136.3,0.00016986,2]
[389520486,1759693845169,-744.95,0.00016986,2]
[389520487,1759693845177,-1385.7,0.00016986,2]
[389520488,1759693845186,-500.0,0.00016986,2]
[389520489,1759693845195,-661.83,0.00016986,2]
[389520490,1759693845204,-1949.0,0.00016986,2]
[389520491,1759693845213,-500.0,0.00016986,2]
[389520492,1759693845222,-500.0,0.00016986,2]
[389520493,1759693845231,-500.0,0.00016986,2]
[389520494,1759693845240,-500.0,0.00016986,2]
[389520495,1759693845249,-5637.43,0.00016986,2]
[389520496,1759693845258,-3127.4,0.00016986,2]
[389520497,1759693845267,-1163.65,0.00016986,2]
[389520498,1759693845277,-500.0,0.00016986,2]
[389520499,1759693845286,-616.16,0.00016986,2]
[389520500,1759693845295,-500.0,0.00016986,2]
[389520501,1759693845309,-500.0,0.00016986,2]
[389520502,1759693845318,-500.0,0.00016986,2]
[389520503,1759693845327,-500.0,0.00016986,2]
[389520504,1759693845336,-500.0,0.00016986,2]
[389520505,1759693845347,-1216.54,0.00016986,2]
[389520506,1759693845356,-1446.67,0.00016986,2]
[389520507,1759693845364,-500.0,0.00016986,2]
[389520508,1759693845373,-699.47,0.00016986,2]
[389520509,1759693845384,-500.0,0.00016986,2]
[389520510,1759693845393,-500.0,0.00016986,2]
[389520511,1759693845402,-757.97,0.00016986,2]
[389520512,1759693845411,-1804.78,0.00016986,2]
[389520513,1759693845420,-500.0,0.00016986,2]
[389520514,1759693845429,-1414.73,0.00016986,2]
[389520515,1759693845438,-550.17,0.00016986,2]
[389520516,1759693845447,-500.0,0.00016986,2]
[389520517,1759693845456,-500.0,0.00016986,2]
[389520518,1759693845465,-500.0,0.00016986,2]
[389520519,1759693845474,-491.39422875,0.00016986,2]
[389520520,1759693845484,-1438.52,0.00016986,2]
[389520521,1759693845493,-1679.24,0.00016986,2]
[389520522,1759693845507,-500.0,0.00016986,2]
[389520523,1759693845516,-100000.0,0.0001699,2]
[389520524,1759693845525,-151.0,0.0001699,2]
[389520525,1759693845534,-151.0,0.0001699,2]
[389520526,1759693845543,-151.0,0.0001699,2]
[389520527,1759693845552,-151.0,0.0001699,2]
[389520528,1759693845561,-151.0,0.0001699,2]
[389520529,1759693845570,-151.0,0.0001699,2]
[389520530,1759693845579,-151.0,0.0001699,2]
[389520531,1759693845588,-151.0,0.0001699,2]
[389520532,1759693845597,-151.0,0.0001699,2]
[389520533,1759693845607,-151.0,0.0001699,2]
[389520534,1759693845617,-151.0,0.0001699,2]
[389520535,1759693845627,-151.0,0.0001699,2]
[389520536,1759693845636,-151.0,0.0001699,2]
[389520537,1759693845645,-151.0,0.0001699,2]
[389520538,1759693845654,-151.0,0.0001699,2]
[389520539,1759693845663,-151.0,0.0001699,2]
[389520540,1759693845672,-151.0,0.0001699,2]
[389520541,1759693845681,-151.0,0.0001699,2]
[389520542,1759693845691,-151.0,0.0001699,2]
[389520543,1759693845700,-151.0,0.0001699,2]
[389520544,1759693845709,-151.0,0.0001699,2]
[389520545,1759693845719,-151.0,0.0001699,2]
[389520546,1759693845728,-151.0,0.0001699,2]
[389520547,1759693845737,-151.0,0.0001699,2]
[389520548,1759693845745,-151.0,0.0001699,2]
[389520549,1759693845754,-151.0,0.0001699,2]
[389520550,1759693845763,-151.0,0.0001699,2]
[389520551,1759693845813,-151.0,0.0001699,2]
[389520552,1759693845822,-151.0,0.0001699,2]
[389520553,1759693845831,-151.0,0.0001699,2]
[389520554,1759693845840,-151.0,0.0001699,2]
[389520555,1759693845848,-151.0,0.0001699,2]
[389520556,1759693845858,-178.71656,0.0001699,2]
[389520557,1759693845868,-151.0,0.0001699,2]
[389520559,1759693845878,-178.71656,0.0001699,2]
[389520561,1759693845888,-151.0,0.0001699,2]
[389520562,1759693845899,-151.0,0.0001699,2]
[389520563,1759693845909,-178.71656,0.0001699,2]
[389520564,1759693845919,-178.71656,0.0001699,2]
[389520566,1759693845928,-151.0,0.0001699,2]
[389520568,1759693845937,-246.344456,0.0001699,2]
[389520569,1759693845947,-151.0,0.0001699,2]
[389520570,1759693845956,-151.0,0.0001699,2]
[389520571,1759693845965,-151.0,0.0001699,2]
[389520572,1759693845974,-151.889801,0.0001699,2]
[389520574,1759693845983,-151.0,0.0001699,2]
[389520575,1759693845992,-151.0,0.0001699,2]
[389520576,1759693846001,-151.0,0.0001699,2]
[389520577,1759693846010,-2841.752848,0.0001699,2]
[389520578,1759693846019,-2841.752848,0.0001699,2]
[389520579,1759693846027,-2841.752848,0.0001699,2]
[389520580,1759693846036,-151.0,0.0001699,2]
[389520581,1759693846045,-2841.752848,0.0001699,2]
[389520582,1759693846054,-151.0,0.0001699,2]
[389520583,1759693846063,-240.984144,0.0001699,2]
[389520584,1759693846072,-151.0,0.0001699,2]
[389520585,1759693846081,-151.0,0.0001699,2]
[389520587,1759693846092,-151.0,0.0001699,2]
[389520588,1759693846101,-155.350315,0.0001699,2]
[389520589,1759693846109,-151.0,0.0001699,2]
[389520590,1759693846118,-151.0,0.0001699,2]
[389520591,1759693846127,-151.0,0.0001699,2]
[389520593,1759693846136,-151.153507,0.0001699,2]
[389520594,1759693846145,-1613.92212527,0.00017023,2]
[389520595,1759693846154,-348.0,0.000171,2]
[389520596,1759693846163,-176.92738512,0.0001716,2]
[389520597,1759693846171,-2000.0,0.00017192,2]
[389520598,1759693846180,-18603.8837,0.00017219,2]
[389520599,1759693846189,-162.380719,0.00017219,2]
[389520600,1759693846199,-361.07194209,0.00017219,2]
[389520601,1759693846208,-157.15423862,0.00017219,2]
[389520602,1759693846217,-162.380719,0.00017219,2]
[389520603,1759693846226,-231.20851096,0.0001726,2]
[389520604,1759693846235,-500.0,0.0001726,2]
[389520605,1759693846244,-626.36,0.0001726,2]
[389520606,1759693846253,-758.13,0.0001726,2]
[389520607,1759693846261,-607.6,0.0001726,2]
[389520608,1759693846270,-500.0,0.0001726,2]
[389520609,1759693846279,-500.0,0.0001726,2]
[389520610,1759693846288,-500.0,0.0001726,2]
[389520611,1759693846297,-674.88,0.0001726,2]
[389520612,1759693846310,-500.0,0.0001726,2]
[389520613,1759693846318,-562.91,0.0001726,2]
[389520614,1759693846327,-500.0,0.0001726,2]
[389520615,1759693846336,-769.83,0.0001726,2]
[389520616,1759693846345,-500.0,0.0001726,2]
[389520618,1759693846355,-500.0,0.0001726,2]
[389520619,1759693846364,-500.0,0.0001726,2]
[389520620,1759693846373,-1235.18,0.0001726,2]
[389520621,1759693846382,-500.0,0.0001726,2]
[389520622,1759693846390,-151.0,0.0001726,2]
[389520624,1759693846399,-151.0,0.0001726,2]
[389520626,1759693846408,-500.0,0.0001726,2]
[389520628,1759693846417,-151.0,0.0001726,2]
[389520630,1759693846427,-151.0,0.0001726,2]
[389520632,1759693846436,-151.0,0.0001726,2]
[389520634,1759693846445,-500.0,0.0001726,2]
[389520636,1759693846454,-540.3,0.0001726,2]
[389520637,1759693846463,-500.0,0.0001726,2]
[389520640,1759693846472,-151.0,0.0001726,2]
[389520642,1759693846482,-151.0,0.0001726,2]
[389520644,1759693846491,-151.0,0.0001726,2]
[389520646,1759693846500,-151.0,0.0001726,2]
[389520647,1759693846509,-500.0,0.0001726,2]
[389520648,1759693846518,-570.97,0.0001726,2]
[389520649,1759693846527,-812.96,0.0001726,2]
[389520650,1759693846536,-151.0,0.0001726,2]
[389520651,1759693846545,-151.0,0.0001726,2]
[389520652,1759693846554,-151.0,0.0001726,2]
[389520653,1759693846563,-500.0,0.0001726,2]
[389520654,1759693846572,-500.0,0.0001726,2]
[389520655,1759693846582,-500.0,0.0001726,2]
[389520656,1759693846592,-151.0,0.0001726,2]
[389520657,1759693846602,-151.0,0.0001726,2]
[389520658,1759693846611,-605.27,0.0001726,2]
[389520659,1759693846620,-618.68571348,0.0001726,2]
[389520660,1759693846629,-500.0,0.0001726,2]
[389520661,1759693846639,-500.0,0.0001726,2]
[389520662,1759693846648,-151.0,0.0001726,2]
[389520663,1759693846657,-151.0,0.0001726,2]
[389520664,1759693846666,-151.0,0.0001726,2]
[389520665,1759693846676,-500.0,0.0001726,2]
[389520666,1759693846685,-500.0,0.0001726,2]
[389520667,1759693846694,-500.0,0.0001726,2]
[389520668,1759693846703,-502.35218277,0.0001726,2]
[389520669,1759693846711,-500.0,0.0001726,2]
[389520670,1759693846720,-500.0,0.0001726,2]
[389520671,1759693846729,-151.0,0.0001726,2]
[389520672,1759693846737,-451.36371341,0.0001726,2]
[389520673,1759693846747,-1838.04,0.0001726,2]
[389520674,1759693846756,-500.0,0.0001726,2]
[389520675,1759693846766,-151.0,0.0001726,2]
[389520676,1759693846776,-151.0,0.0001726,2]
[389520677,1759693846787,-151.0,0.0001726,2]
[389520678,1759693846796,-287.236858,0.0001726,2]
[389520679,1759693846805,-151.0,0.0001726,2]
[389520680,1759693846814,-500.0,0.0001726,2]
[389520681,1759693846823,-651.56,0.0001726,2]
[389520682,1759693846833,-500.0,0.0001726,2]
[389520683,1759693846842,-1092.5,0.0001726,2]
[389520684,1759693846851,-1194.26,0.0001726,2]
[389520685,1759693846860,-500.0,0.0001726,2]
[389520686,1759693846869,-151.0,0.0001726,2]
[389520687,1759693846878,-500.0,0.0001726,2]
[389520688,1759693846888,-151.659466,0.0001726,2]
[389520689,1759693846897,-151.0,0.0001726,2]
[389520690,1759693846908,-500.0,0.0001726,2]
[389520691,1759693846916,-500.0,0.0001726,2]
[389520692,1759693846927,-500.0,0.0001726,2]
[389520693,1759693846936,-500.0,0.0001726,2]
[389520694,1759693846946,-500.0,0.0001726,2]
[389520695,1759693846955,-500.0,0.0001726,2]
[389520696,1759693846964,-500.0,0.0001726,2]
[389520697,1759693846974,-500.0,0.0001726,2]
[389520698,1759693846983,-500.0,0.0001726,2]
[389520699,1759693846993,-800.06,0.0001726,2]
[389520700,1759693847002,-663.65,0.0001726,2]
[389520701,1759693847011,-1260.74,0.0001726,2]
[389520702,1759693847022,-500.0,0.0001726,2]
[389520703,1759693847031,-569.99,0.0001726,2]
[389520704,1759693847040,-1886.03,0.0001726,2]
[389520705,1759693847051,-500.0,0.0001726,2]
[389520706,1759693847061,-789.18,0.0001726,2]
[389520707,1759693847070,-500.0,0.0001726,2]
[389520708,1759693847079,-500.0,0.0001726,2]
[389520709,1759693847087,-786.17,0.0001726,2]
[389520710,1759693847097,-500.0,0.0001726,2]
[389520711,1759693847107,-500.0,0.0001726,2]
[389520712,1759693847115,-500.0,0.0001726,2]
[389520713,1759693847125,-500.0,0.0001726,2]
[389520714,1759693847134,-946.01,0.0001726,2]
[389520715,1759693847142,-776.5,0.0001726,2]
[389520716,1759693847151,-404.23858333,0.0001726,2]
[389520717,1759693847160,-500.0,0.0001726,2]
[389520718,1759693847169,-500.0,0.0001726,2]
[389520719,1759693847178,-500.0,0.0001726,2]
[389520720,1759693847187,-1066.9,0.0001726,2]
[389520721,1759693847196,-500.0,0.0001726,2]